bitfinex-derivatives/quotes_BTCF0:USTF0_20230901
["timestamp","ask_amount","ask_price","bid_price","bid_amount"]
[1693550527771,0.00384,26010.0,26008.0,0.53098238]
[1693550528071,0.47432907,26010.0,26009.0,0.07683194]
[1693550528579,0.53087671,26010.0,26009.0,0.07683194]
[1693550528875,0.53087671,26010.0,26008.0,0.53098238]
[1693550529078,0.06038764,26009.0,26008.0,0.53098238]
[1693550529679,0.06038764,26009.0,26008.0,0.56298238]
[1693550530275,0.06338764,26009.0,26008.0,0.56298238]
[1693550530776,0.06638764,26009.0,26008.0,0.59498238]
[1693550530979,0.06638764,26009.0,26008.0,0.53375666]
[1693550531881,0.00984,26009.0,26008.0,0.53375666]
[1693550532079,0.00984,26009.0,26008.0,0.59030504]
[1693550532968,0.06638764,26009.0,26008.0,0.53375666]
[1693550533481,0.06638764,26009.0,26008.0,0.4798]
[1693550533786,0.06638764,26009.0,26008.0,0.53375666]
[1693550534082,0.06638764,26009.0,26008.0,0.4798]
[1693550535781,0.06638764,26009.0,26008.0,0.6333765]
[1693550536785,0.006,26009.0,26008.0,0.68733316]
[1693550537788,0.006,26009.0,26008.0,0.6333765]
[1693550538385,0.006,26009.0,26008.0,0.74388154]
[1693550539887,0.006,26009.0,26008.0,0.59030504]
[1693550550795,0.006,26009.0,26008.0,0.74388154]
[1693550552299,0.006,26009.0,26008.0,0.99836809]
[1693550552803,0.006,26009.0,26008.0,0.74388154]
[1693550553098,0.006,26009.0,26008.0,0.99836814]
[1693550556600,0.006,26009.0,26008.0,1.01836814]
[1693550559004,0.006,26009.0,26008.0,0.99836814]
[1693550559201,0.006,26009.0,26008.0,1.01836814]
[1693550559707,0.006,26009.0,26008.0,0.99836814]
[1693550559907,0.006,26009.0,26008.0,1.01836814]
[1693550561507,0.006,26009.0,26008.0,0.99836814]
[1693550561704,0.006,26009.0,26008.0,1.01836814]
[1693550561910,0.006,26009.0,26008.0,0.99836814]
[1693550562212,0.006,26009.0,26008.0,1.01836814]
[1693550562603,0.006,26009.0,26008.0,0.99836814]
[1693550565814,0.006,26009.0,26008.0,0.84479164]
[1693550566610,0.22198709,26014.0,26008.0,1.93101774]
[1693550566809,0.02,26014.0,26013.0,0.49269285]
[1693550567013,0.02,26014.0,26013.0,0.60319789]
[1693550567223,0.02,26014.0,26013.0,0.76149789]
[1693550568116,0.023,26014.0,26013.0,0.76149789]
[1693550568712,0.087,26014.0,26013.0,0.76749789]
[1693550569108,0.067,26014.0,26013.0,0.97814432]
[1693550569318,0.067,26014.0,26013.0,0.86280504]
[1693550570024,0.067,26014.0,26013.0,0.97807519]
[1693550570227,0.067,26014.0,26013.0,0.97507519]
[1693550570524,0.041,26014.0,26013.0,0.95607519]
[1693550570908,0.041,26014.0,26013.0,0.97307519]
[1693550571113,0.016,26014.0,26013.0,0.97407519]
[1693550573115,0.016,26014.0,26013.0,0.95407519]
[1693550573320,0.016,26014.0,26013.0,0.97407519]
[1693550573622,0.016,26014.0,26013.0,0.95407519]
[1693550574126,0.016,26014.0,26013.0,0.83880504]
[1693550575121,0.016,26014.0,26013.0,0.91560589]
[1693550575626,0.016,26014.0,26013.0,0.83880504]
[1693550576017,0.016,26014.0,26013.0,0.91559823]
[1693550586223,0.016,26014.0,26013.0,0.76339823]
[1693550589226,0.016,26014.0,26013.0,0.70944157]
[1693550589431,0.016,26014.0,26013.0,0.76339823]
[1693550589622,0.016,26014.0,26013.0,0.65289319]
[1693550590130,0.016,26014.0,26013.0,0.70944157]
[1693550590330,0.016,26014.0,26013.0,0.65289319]
[1693550590630,0.07254764,26014.0,26013.0,0.65289319]
[1693550592033,0.07254764,26014.0,26013.0,0.70684985]
[1693550592424,0.016,26014.0,26013.0,0.76339823]
[1693550593235,0.016,26014.0,26013.0,0.70944157]
[1693550593532,0.016,26014.0,26013.0,0.76339823]
[1693550593733,0.016,26014.0,26013.0,0.70944157]
[1693550594833,0.07254764,26014.0,26013.0,0.70944157]
[1693550595132,0.07254764,26014.0,26013.0,0.65289319]
[1693550598034,0.07254764,26014.0,26013.0,0.70944157]
[1693550598835,0.016,26014.0,26013.0,0.76339823]
[1693550600637,0.016,26014.0,26013.0,0.70944157]
[1693550603039,0.016,26014.0,26013.0,0.63264838]
[1693550604641,0.016,26014.0,26013.0,0.5761]
[1693550604944,0.016,26014.0,26013.0,0.74791853]
[1693550606839,0.016,26014.0,26013.0,0.80187519]
[1693550607138,0.016,26014.0,26013.0,0.74791853]
[1693550608544,0.016,26014.0,26013.0,0.80187519]
[1693550608756,0.07068907,26014.0,26013.0,0.69137015]
[1693550608938,0.016,26014.0,26013.0,0.69137015]
[1693550609341,0.016,26014.0,26013.0,0.80187519]
[1693550610445,0.016,26014.0,26013.0,0.74791853]
[1693550610843,0.016,26014.0,26013.0,0.63264838]
[1693550612947,0.016,26014.0,26013.0,0.78643409]
[1693550613547,0.016,26014.0,26013.0,0.84039075]
[1693550613848,0.016,26014.0,26013.0,1.094831]
[1693550614047,0.016,26014.0,26013.0,1.04087434]
[1693550614244,0.016,26014.0,26013.0,1.094831]
[1693550614445,0.016,26014.0,26013.0,1.04087434]
[1693550614952,0.016,26014.0,26013.0,1.094831]
[1693550620455,0.016,26014.0,26013.0,0.94104529]
[1693550620659,0.016,26014.0,26013.0,1.09486594]
[1693550621652,0.016,26014.0,26013.0,1.09485956]
[1693550621855,0.016,26014.0,26013.0,1.09485958]
[1693550622053,0.016,26014.0,26013.0,0.94104529]
[1693550623553,0.016,26014.0,26013.0,1.09484905]
[1693550625049,0.016,26014.0,26013.0,0.94104529]
[1693550627964,0.008,26014.0,26013.0,0.94004529]
[1693550628256,0.008,26014.0,26013.0,0.94504529]
[1693550628446,0.00057662,26016.0,26014.0,0.11050504]
[1693550628652,0.00057662,26016.0,26015.0,0.82401985]
[1693550628852,0.00057662,26016.0,26015.0,1.01195896]
[1693550629351,0.00057662,26016.0,26015.0,1.142464]
[1693550629747,0.00057662,26016.0,26015.0,1.129464]
[1693550629960,0.00157662,26016.0,26015.0,1.149464]
[1693550630561,0.00157662,26016.0,26015.0,1.153464]
[1693550631663,0.00257662,26016.0,26015.0,1.166464]
[1693550631966,0.00257662,26016.0,26015.0,1.146464]
[1693550632169,0.00257662,26016.0,26015.0,1.166464]
[1693550632466,0.00357662,26016.0,26015.0,1.159464]
[1693550632962,0.00357662,26016.0,26015.0,1.179464]
[1693550633152,0.00357662,26016.0,26015.0,0.92502375]
[1693550633459,0.00357662,26016.0,26015.0,0.77124415]
[1693550634864,0.00357662,26016.0,26015.0,0.75124415]
[1693550635063,0.00357662,26016.0,26015.0,0.77124415]
[1693550635857,0.00357662,26016.0,26015.0,0.75124415]
[1693550640163,0.00357662,26016.0,26015.0,0.90491739]
[1693550641264,0.00357662,26016.0,26015.0,1.15932744]
[1693550642172,0.00357662,26016.0,26015.0,0.90491739]
[1693550644563,0.00357662,26016.0,26015.0,0.75124415]
[1693550645166,0.00357662,26016.0,26015.0,0.71790504]
[1693550646474,0.00357662,26016.0,26015.0,0.87157828]
[1693550646771,0.00357662,26016.0,26015.0,0.71790504]
[1693550647173,0.00357662,26016.0,26015.0,0.87157828]
[1693550648165,0.00357662,26016.0,26015.0,0.71790504]
[1693550649566,0.19566692,26023.0,26015.0,1.64876849]
[1693550649880,0.19566692,26023.0,26022.0,0.4158]
[1693550649881,0.16514,26023.0,26022.0,0.4158]
[1693550650078,0.19182692,26025.0,26022.0,0.4158]
[1693550650378,0.00384,26024.0,26023.0,0.11050504]
[1693550650576,0.21182692,26025.0,26023.0,0.4158]
[1693550650776,0.02,26025.0,26024.0,0.4158]
[1693550651379,0.02,26025.0,26024.0,0.52630504]
[1693550652372,0.057,26025.0,26024.0,0.52630504]
[1693550652770,0.11925602,26025.0,26024.0,0.52930504]
[1693550653577,0.11925602,26025.0,26024.0,0.47275666]
[1693550655278,0.08225602,26025.0,26024.0,0.53230504]
[1693550655488,0.11925602,26025.0,26024.0,0.53230504]
[1693550656883,0.11925602,26025.0,26024.0,0.47575666]
[1693550657090,0.11925602,26025.0,26024.0,0.4218]
[1693550657479,0.09925602,26025.0,26024.0,0.4218]
[1693550657680,0.11925602,26025.0,26024.0,0.4218]
[1693550658292,0.17580366,26025.0,26024.0,0.4218]
[1693550658894,0.17580366,26025.0,26024.0,0.47575666]
[1693550659083,0.17580366,26025.0,26024.0,0.4218]
[1693550659781,0.17580366,26025.0,26024.0,0.47575666]
[1693550660397,0.15580366,26025.0,26024.0,0.4218]
[1693550660595,0.17580366,26025.0,26024.0,0.4218]
[1693550660893,0.15580366,26025.0,26024.0,0.4218]
[1693550661100,0.17580366,26025.0,26024.0,0.4218]
[1693550661595,0.15580366,26025.0,26024.0,0.4218]
[1693550661793,0.09925602,26025.0,26024.0,0.4218]
[1693550662495,0.09925602,26025.0,26024.0,0.53230504]
[1693550663490,0.09925602,26025.0,26024.0,0.47834838]
[1693550663690,0.09925602,26025.0,26024.0,0.53230504]
[1693550665889,0.09925602,26025.0,26024.0,0.4218]
[1693550667294,0.15580366,26025.0,26024.0,0.4218]
[1693550669699,0.15580366,26025.0,26024.0,0.47575666]
[1693550670599,0.09925602,26025.0,26024.0,0.53230504]
[1693550671804,0.09925602,26025.0,26024.0,0.47834838]
[1693550673200,0.09925602,26025.0,26024.0,0.53230504]
[1693550673703,0.09925602,26025.0,26024.0,0.47834838]
[1693550676906,0.09925602,26025.0,26024.0,0.53230504]
[1693550683802,0.09925602,26025.0,26024.0,0.47834838]
[1693550684101,0.09925602,26025.0,26024.0,0.53230504]
[1693550686004,0.09925602,26025.0,26024.0,0.4218]
[1693550686405,0.53505602,26025.0,26024.0,0.41193423]
[1693550686598,0.25451252,26025.0,26022.0,0.00057638]
[1693550686803,0.14327581,26025.0,26022.0,0.00057638]
[1693550687105,0.41964,26023.0,26022.0,0.00057638]
[1693550687311,0.4358,26023.0,26022.0,0.00057638]
[1693550687609,0.43964,26023.0,26022.0,0.00057638]
[1693550688013,0.55087671,26023.0,26022.0,0.00157638]
[1693550688613,0.55087671,26023.0,26022.0,0.41737638]
[1693550688812,0.43964,26023.0,26022.0,0.47392476]
[1693550689314,0.45064,26023.0,26022.0,0.47492476]
[1693550689505,0.45064,26023.0,26022.0,0.47392476]
[1693550689706,0.57487671,26023.0,26022.0,0.41837638]
[1693550690513,0.52018764,26023.0,26022.0,0.41837638]
[1693550691214,0.57487671,26023.0,26022.0,0.41837638]
[1693550692105,0.50018764,26023.0,26022.0,0.41837638]
[1693550692311,0.55487671,26023.0,26022.0,0.41837638]
[1693550692507,0.50018764,26023.0,26022.0,0.41837638]
[1693550693417,0.55487671,26023.0,26022.0,0.41837638]
[1693550696910,0.13907671,26023.0,26022.0,0.41837638]
[1693550698314,0.08438764,26023.0,26022.0,0.41837638]
[1693550698516,0.13907671,26023.0,26022.0,0.41837638]
[1693550699710,0.08438764,26023.0,26022.0,0.58277638]
[1693550703719,0.13907671,26023.0,26022.0,0.58277638]
[1693550704906,0.02784,26023.0,26022.0,0.58277638]
[1693550705113,0.024,26023.0,26022.0,0.58277638]
[1693550705519,0.024,26023.0,26022.0,0.69328142]
[1693550707719,0.08054764,26023.0,26022.0,0.69328142]
[1693550707922,0.08054764,26023.0,26022.0,0.58277638]
[1693550708919,0.08054764,26023.0,26022.0,0.63673304]
[1693550709119,0.08054764,26023.0,26022.0,0.58277638]
[1693550709518,0.08438764,26023.0,26022.0,0.58277638]
[1693550709914,0.13907671,26023.0,26022.0,0.58277638]
[1693550715426,0.13523671,26023.0,26022.0,0.58277638]
[1693550716226,0.08054764,26023.0,26022.0,0.63932476]
[1693550716425,0.024,26023.0,26022.0,0.63932476]
[1693550716926,0.13907671,26023.0,26022.0,0.58277638]
[1693550718334,0.55103671,26023.0,26022.0,0.58277638]
[1693550718824,0.49634764,26023.0,26022.0,0.58277638]
[1693550719929,0.4398,26023.0,26022.0,0.58277638]
[1693550720129,0.4398,26023.0,26022.0,0.69328142]
[1693550720330,0.024,26023.0,26022.0,0.69328142]
[1693550723634,0.08054764,26023.0,26022.0,0.58277638]
[1693550725529,0.08054764,26023.0,26022.0,0.63673304]
[1693550726437,0.08054764,26023.0,26022.0,0.58277638]
[1693550726636,0.024,26023.0,26022.0,0.58277638]
[1693550727038,0.024,26023.0,26022.0,0.63932476]
[1693550727236,0.024,26023.0,26022.0,0.69328142]
[1693550728534,0.024,26023.0,26022.0,0.63932476]
[1693550728736,0.024,26023.0,26022.0,0.7700681]
[1693550728934,0.024,26023.0,26022.0,0.71611144]
[1693550729538,0.024,26023.0,26022.0,0.7700681]
[1693550730436,0.024,26023.0,26022.0,0.69328142]
[1693550730637,0.024,26023.0,26022.0,0.80846145]
[1693550738641,0.024,26023.0,26022.0,0.69328142]
[1693550739545,0.024,26023.0,26022.0,0.80846145]
[1693550739841,0.024,26023.0,26022.0,0.69328142]
[1693550740241,0.024,26023.0,26022.0,0.80846145]
[1693550741046,0.024,26023.0,26022.0,0.71328142]
[1693550741547,0.024,26023.0,26022.0,1.12120487]
[1693550741938,0.024,26023.0,26022.0,0.86685479]
[1693550742746,0.024,26023.0,26022.0,0.71328142]
[1693550744142,0.024,26023.0,26022.0,1.12120385]
[1693550745549,0.013,26023.0,26022.0,1.12220385]
[1693550745744,0.03125602,26025.0,26023.0,0.11050504]
[1693550745946,0.00057638,26027.0,26024.0,0.49261728]
[1693550746135,0.03208965,26027.0,26026.0,0.4158]
[1693550746341,0.05208965,26027.0,26026.0,0.4158]
[1693550746947,0.05208965,26027.0,26026.0,0.46975666]
[1693550747149,0.07608965,26027.0,26026.0,0.46975666]
[1693550747641,0.05208965,26027.0,26026.0,0.46975666]
[1693550748448,0.05908965,26027.0,26026.0,0.52930504]
[1693550748637,0.07908965,26027.0,26026.0,0.52930504]
[1693550748840,0.09208965,26027.0,26026.0,0.53230504]
[1693550749039,0.11208965,26027.0,26026.0,0.47575666]
[1693550749349,0.09208965,26027.0,26026.0,0.47575666]
[1693550749952,0.09208965,26027.0,26026.0,0.4218]
[1693550750648,0.09208965,26027.0,26026.0,0.47575666]
[1693550751148,0.09208965,26027.0,26026.0,0.53230504]
[1693550751541,0.09208965,26027.0,26026.0,0.60912232]
[1693550751939,0.24952889,26031.0,26026.0,1.18834757]
[1693550752244,0.24952889,26031.0,26030.0,0.4158]
[1693550752245,0.00384,26031.0,26030.0,0.4158]
[1693550752451,0.00384,26031.0,26030.0,0.52630504]
[1693550752949,0.03447244,26031.0,26030.0,0.52630504]
[1693550755252,0.03063244,26031.0,26030.0,0.52630504]
[1693550755554,0.34494705,26033.0,26030.0,0.53030504]
[1693550755741,0.34494705,26033.0,26032.0,0.4158]
[1693550756342,0.34494705,26033.0,26032.0,0.52630504]
[1693550756849,0.1532,26033.0,26032.0,0.52630504]
[1693550757045,0.1532,26033.0,26032.0,0.52930504]
[1693550757351,0.18436023,26033.0,26032.0,0.52930504]
[1693550758351,0.18436023,26033.0,26032.0,0.53230504]
[1693550759651,0.24243394,26033.0,26032.0,0.53230504]
[1693550761740,0.18436023,26033.0,26032.0,0.53230504]
[1693550767258,0.4588,26035.0,26032.0,0.53230504]
[1693550767457,0.4788,26035.0,26034.0,0.4158]
[1693550768153,0.4788,26035.0,26034.0,0.46975666]
[1693550768853,0.4788,26035.0,26034.0,0.47275666]
[1693550769257,0.4788,26035.0,26034.0,0.52930504]
[1693550770652,0.4788,26035.0,26034.0,0.53230504]
[1693550771058,0.53534764,26035.0,26034.0,0.47575666]
[1693550772160,0.64766731,26035.0,26034.0,0.4218]
[1693550772348,1.09395456,26035.0,26034.0,0.4218]
[1693550772552,1.09395456,26035.0,26034.0,0.28561036]
[1693550775361,1.09395456,26035.0,26034.0,0.25562017]
[1693550777051,1.09395456,26035.0,26032.0,0.4158]
[1693550777254,0.52703671,26034.0,26032.0,0.4158]
[1693550777558,0.4158,26034.0,26032.0,0.4158]
[1693550777759,0.11123671,26033.0,26032.0,0.4158]
[1693550778161,0.13123671,26033.0,26032.0,0.4188]
[1693550778361,0.13123671,26033.0,26032.0,0.4218]
[1693550778875,0.07654764,26033.0,26032.0,0.4218]
[1693550779064,0.07854764,26033.0,26032.0,0.4218]
[1693550780361,0.022,26033.0,26032.0,0.47575666]
[1693550780561,0.002,26033.0,26032.0,0.53230504]
[1693550780764,0.005,26033.0,26032.0,0.53230504]
[1693550781162,0.06154764,26033.0,26032.0,0.4218]
[1693550782360,0.005,26033.0,26032.0,0.4218]
[1693550782567,0.005,26033.0,26032.0,0.47575666]
[1693550782954,0.005,26033.0,26032.0,0.4218]
[1693550783158,0.005,26033.0,26032.0,0.47575666]
[1693550783559,0.005,26033.0,26032.0,0.4218]
[1693550784367,0.005,26033.0,26032.0,0.53230504]
[1693550784572,0.005,26033.0,26032.0,0.55230504]
[1693550784864,0.005,26033.0,26032.0,0.62896806]
[1693550785068,0.005,26033.0,26032.0,0.78996806]
[1693550794174,0.005,26033.0,26032.0,0.76996806]
[1693550794372,0.005,26033.0,26032.0,0.78996806]
[1693550795367,0.005,26033.0,26032.0,0.76996806]
[1693550795569,0.005,26033.0,26032.0,0.78996806]
[1693550796175,0.005,26033.0,26032.0,0.71341968]
[1693550796389,0.005,26033.0,26032.0,0.73341968]
[1693550797180,0.005,26033.0,26032.0,0.78996806]
[1693550797577,0.005,26033.0,26032.0,0.7360114]
[1693550798181,0.005,26033.0,26032.0,0.78996806]
[1693550799984,0.005,26033.0,26032.0,0.76996806]
[1693550804887,0.005,26033.0,26032.0,0.7160114]
[1693550805497,0.06154764,26033.0,26032.0,0.65946302]
[1693550806188,0.06154764,26033.0,26032.0,0.5828]
[1693550806388,0.11623671,26033.0,26032.0,0.5828]
[1693550807094,0.06154764,26033.0,26032.0,0.5828]
[1693550809190,0.11623671,26033.0,26032.0,0.5828]
[1693550811203,0.06154764,26033.0,26032.0,0.5828]
[1693550812404,0.11623671,26033.0,26032.0,0.5828]
[1693550813098,0.13623671,26033.0,26032.0,0.5828]
[1693550813302,0.55203671,26033.0,26032.0,0.006]
[1693550813705,0.74356908,26033.0,26032.0,0.006]
[1693550818315,0.85203671,26033.0,26032.0,0.006]
[1693550820821,1.04376264,26033.0,26032.0,0.006]
[1693550821220,0.85203671,26033.0,26032.0,0.006]
[1693550821518,1.04376225,26033.0,26032.0,0.006]
[1693550822820,1.10226494,26033.0,26032.0,0.006]
[1693550828922,0.9105394,26033.0,26032.0,0.006]
[1693550832520,0.9105394,26033.0,26030.0,0.0005762]
[1693550832727,0.41964,26031.0,26030.0,0.0005762]
[1693550833126,0.53087671,26031.0,26030.0,0.0005762]
[1693550834131,0.3184238,26030.0,26026.0,0.23006302]
[1693550834335,0.4158,26027.0,26026.0,0.23163922]
[1693550834826,0.52703671,26027.0,26026.0,0.23163922]
[1693550835422,0.52703671,26027.0,26026.0,0.1734]
[1693550836533,0.53203671,26027.0,26026.0,0.1734]
[1693550837223,0.53803671,26027.0,26026.0,0.1734]
[1693550842641,0.53803671,26027.0,26026.0,0.1534]
[1693550843538,0.53803671,26027.0,26026.0,0.15239]
[1693550843939,0.53803671,26027.0,26026.0,0.13441]
[1693550849246,0.59583954,26027.0,26026.0,0.13441]
[1693550850838,0.59583954,26027.0,26026.0,0.11878279]
[1693550851043,0.59583954,26027.0,26026.0,0.08903679]
[1693550851245,0.62669233,26027.0,26026.0,0.08903679]
[1693550879866,0.62669233,26027.0,26026.0,0.05904444]
[1693550881164,0.81835227,26027.0,26026.0,0.05904444]
[1693550902296,0.81835227,26027.0,26026.0,0.05398075]
[1693550903198,0.81835227,26027.0,26026.0,0.02775704]
[1693550904295,0.81835227,26027.0,26026.0,0.01446485]
[1693550906300,0.81835227,26027.0,26026.0,0.00243858]
[1693550907398,0.62669233,26027.0,26026.0,0.00243858]
[1693550910401,0.81855624,26027.0,26026.0,0.00243858]
[1693550915012,0.76386717,26027.0,26026.0,0.00243858]
[1693550915597,0.81855624,26027.0,26026.0,0.00243858]
[1693550916297,0.76386717,26027.0,26026.0,0.00243858]
[1693550917207,0.81855624,26027.0,26026.0,0.00243858]
[1693550918005,0.76386717,26027.0,26026.0,0.00243858]
[1693550918206,0.81855624,26027.0,26026.0,0.00243858]
[1693550922909,0.76386717,26027.0,26026.0,0.00243858]
[1693550923114,0.81855624,26027.0,26026.0,0.00243858]
[1693550952033,0.76386717,26027.0,26026.0,0.05639524]
[1693550952233,0.76386717,26027.0,26026.0,0.00243858]
[1693550953135,0.81855624,26027.0,26026.0,0.00243858]
[1693550954334,0.81855624,26027.0,26026.0,0.07932293]
[1693550954528,0.70731953,26027.0,26026.0,0.15327959]
[1693550954734,0.76386717,26027.0,26026.0,0.09932293]
[1693550958236,0.81855624,26027.0,26026.0,0.09932293]
[1693550959633,0.76386717,26027.0,26026.0,0.09932293]
[1693550959938,0.70606434,26027.0,26026.0,0.09932293]
[1693550960133,0.51420043,26027.0,26026.0,0.07639524]
[1693550960937,0.51420043,26027.0,26026.0,0.15327184]
[1693550961236,0.51420043,26027.0,26026.0,0.09931518]
[1693550961936,0.51420043,26027.0,26026.0,0.15327184]
[1693550962238,0.45765279,26027.0,26026.0,0.15327184]
[1693550962430,0.45765279,26027.0,26026.0,0.20982022]
[1693550963132,0.45765279,26027.0,26026.0,0.13294362]
[1693550963532,0.45765279,26027.0,26026.0,0.24793816]
[1693550964537,0.45765279,26027.0,26026.0,0.20980726]
[1693550964741,0.45765279,26027.0,26026.0,0.13294362]
[1693550966234,0.45765279,26027.0,26026.0,0.07639524]
[1693550966439,0.51420043,26027.0,26026.0,0.15325209]
[1693550966640,0.51420043,26027.0,26026.0,0.07929543]
[1693550969847,0.5688895,26027.0,26026.0,0.07929543]
[1693550970842,0.51420043,26027.0,26026.0,0.07929543]
[1693550971136,0.5688895,26027.0,26026.0,0.07929543]
[1693550971539,0.92195341,26027.0,26026.0,0.00243858]
[1693550972640,0.92195341,26027.0,26025.0,0.23045685]
[1693550972836,0.52703671,26026.0,26025.0,0.23045685]
[1693550973745,0.52703671,26026.0,26025.0,0.23645685]
[1693550975049,0.52703671,26026.0,26025.0,0.24245685]
[1693550975846,0.52703671,26026.0,26025.0,0.23645685]
[1693550976048,0.53203671,26026.0,26025.0,0.23745685]
[1693550976647,0.47734764,26026.0,26025.0,0.23745685]
[1693550976848,0.48234764,26026.0,26025.0,0.23245685]
[1693550978144,0.53703671,26026.0,26025.0,0.23245685]
[1693550984453,0.55703671,26026.0,26025.0,0.23245685]
[1693550986050,0.53703671,26026.0,26025.0,0.23245685]
[1693550986355,0.55703671,26026.0,26025.0,0.23245685]
[1693550987348,0.53703671,26026.0,26025.0,0.23245685]
[1693550987656,0.55703671,26026.0,26025.0,0.23245685]
[1693550989654,0.55703671,26026.0,26025.0,0.1556]
[1693550990057,0.55703671,26026.0,26025.0,0.23245685]
[1693550990260,0.74890062,26026.0,26025.0,0.1556]
[1693550993269,0.72890062,26026.0,26025.0,0.1556]
[1693550993758,0.74890062,26026.0,26025.0,0.1556]
[1693550993946,0.74890062,26026.0,26025.0,0.002]
[1693550995758,0.72890062,26026.0,26025.0,0.002]
[1693551015570,0.00384,26023.0,26022.0,0.24074132]
[1693551015869,0.41964,26023.0,26022.0,0.0407855]
[1693551016075,0.01898,26022.0,26021.0,0.07684132]
[1693551016373,0.52703671,26022.0,26021.0,0.05786132]
[1693551016877,0.4158,26021.0,26020.0,0.1659]
[1693551017169,0.94283671,26021.0,26020.0,0.1659]
[1693551018364,0.94283671,26021.0,26020.0,0.1849]
[1693551019566,0.94283671,26021.0,26020.0,0.2029]
[1693551021480,0.94667671,26021.0,26020.0,0.2029]
[1693551022283,1.24667671,26021.0,26020.0,0.2029]
[1693551022466,1.84667671,26021.0,26020.0,0.2029]
[1693551023074,1.84667671,26021.0,26020.0,0.18391]
[1693551025382,0.00604,26020.0,26017.0,0.1605]
[1693551025582,0.4158,26018.0,26017.0,0.1583]
[1693551025779,0.4158,26018.0,26017.0,0.13932]
[1693551026284,0.52703671,26018.0,26017.0,0.29752]
[1693551026683,0.52703671,26018.0,26017.0,0.33452]
[1693551026984,0.52903671,26018.0,26017.0,0.37152]
[1693551027185,0.53103671,26018.0,26017.0,0.37152]
[1693551029083,0.53103671,26018.0,26017.0,0.01612025]
[1693551029084,2.65487671,26018.0,26017.0,0.01612025]
[1693551031587,2.65487671,26018.0,26014.0,0.1556]
[1693551031588,0.11507671,26017.0,26014.0,0.1556]
[1693551031777,0.4158,26015.0,26014.0,0.1556]
[1693551031978,0.4358,26015.0,26014.0,0.1556]
[1693551032482,0.54703671,26015.0,26014.0,0.1556]
[1693551033081,0.55203671,26015.0,26014.0,0.1566]
[1693551033287,0.55203671,26015.0,26014.0,0.1576]
[1693551033685,0.57903671,26015.0,26014.0,0.1596]
[1693551033884,0.61003671,26015.0,26014.0,0.1616]
[1693551034086,0.61003671,26015.0,26013.0,0.1552]
[1693551034286,0.11123671,26014.0,26013.0,0.1552]
[1693551035994,0.11123671,26014.0,26013.0,0.1572]
[1693551036182,0.11123671,26014.0,26013.0,0.1592]
[1693551036686,0.13023671,26014.0,26013.0,0.1592]
[1693551036993,0.14923671,26014.0,26013.0,0.1592]
[1693551044693,0.038,26014.0,26013.0,0.1592]
[1693551044894,0.09268907,26014.0,26013.0,0.1592]
[1693551045486,0.038,26014.0,26013.0,0.21574838]
[1693551045685,0.038,26014.0,26013.0,0.28970504]
[1693551045889,0.4538,26014.0,26013.0,0.28970504]
[1693551046291,0.48512853,26014.0,26013.0,0.28970504]
[1693551050197,0.48512853,26014.0,26013.0,0.1792]
[1693551050198,0.54167617,26014.0,26013.0,0.1792]
[1693551050793,0.54167617,26014.0,26013.0,0.23315666]
[1693551051299,0.48512853,26014.0,26013.0,0.28970504]
[1693551054096,0.48512853,26014.0,26013.0,0.26970504]
[1693551054302,0.48512853,26014.0,26013.0,0.28970504]
[1693551055698,0.48512853,26014.0,26013.0,0.23574838]
[1693551056200,0.54167617,26014.0,26013.0,0.1792]
[1693551056597,0.59636524,26014.0,26013.0,0.1792]
[1693551056915,0.59636524,26014.0,26013.0,0.1592]
[1693551058905,0.74786524,26014.0,26013.0,0.1592]
[1693551067121,0.4158,26013.0,26012.0,0.11519754]
[1693551067406,1.6632,26013.0,26010.0,0.1151655]
[1693551067613,1.6632,26013.0,26009.0,0.1151637]
[1693551067614,0.4158,26011.0,26009.0,0.1151637]
[1693551067812,1.2674,26013.0,26009.0,0.1151637]
[1693551067813,0.52703671,26010.0,26009.0,0.1151637]
[1693551067998,0.5802,26010.0,26009.0,0.1151637]
[1693551068403,0.69143671,26010.0,26009.0,0.1151637]
[1693551069113,0.69443671,26010.0,26009.0,0.1491637]
[1693551070115,0.69443671,26010.0,26009.0,0.1301837]
[1693551070310,0.69743671,26010.0,26009.0,0.1631837]
[1693551070612,0.71743671,26010.0,26009.0,0.1631837]
[1693551071914,0.00385,26008.0,26006.0,0.19199591]
[1693551072105,0.4158,26005.0,26004.0,0.35659591]
[1693551072314,0.8316,26005.0,26004.0,0.46449047]
[1693551072514,0.94283671,26005.0,26004.0,0.46449047]
[1693551073010,0.94283671,26005.0,26004.0,0.23952456]
[1693551073214,0.94283671,26005.0,26002.0,0.1526]
[1693551073414,0.4158,26003.0,26002.0,0.1526]
[1693551073604,0.31961226,26003.0,26002.0,0.1526]
[1693551073801,0.31961226,26003.0,26000.0,0.23039509]
[1693551074005,0.4158,26001.0,26000.0,0.25039509]
[1693551074206,0.24266248,26001.0,26000.0,0.49086384]
[1693551074404,0.24266248,26001.0,26000.0,0.26046875]
[1693551074605,0.24266248,26001.0,26000.0,0.31442541]
[1693551074817,0.24266248,26001.0,26000.0,0.26046875]
[1693551075317,0.24666248,26001.0,26000.0,0.27446875]
[1693551075816,0.24666248,26001.0,26000.0,0.034]
[1693551076011,0.30721012,26001.0,26000.0,0.05]
[1693551077909,0.36189919,26001.0,26000.0,0.05]
[1693551078708,0.36189919,26001.0,26000.0,0.03]
[1693551080111,0.36189919,26001.0,26000.0,0.01101]
[1693551080610,0.35789919,26001.0,25999.0,0.1526]
[1693551080821,0.006,26001.0,26000.0,0.01]
[1693551081014,0.4218,26001.0,26000.0,0.01]
[1693551081213,0.4198,26001.0,26000.0,0.001]
[1693551081415,0.4218,26001.0,26000.0,0.002]
[1693551081609,0.53303671,26001.0,26000.0,0.001]
[1693551082015,0.01798,26000.0,25999.0,0.1526]
[1693551082210,0.68663671,26000.0,25999.0,0.13462]
[1693551082409,0.68663671,26000.0,25996.0,0.1614]
[1693551082604,0.4158,25997.0,25996.0,0.1814]
[1693551083710,0.4158,25997.0,25996.0,0.23794838]
[1693551084119,0.4198,25997.0,25996.0,0.24594838]
[1693551084508,0.4238,25997.0,25996.0,0.24694838]
[1693551084710,0.4238,25997.0,25996.0,0.30090504]
[1693551085016,0.4238,25997.0,25996.0,0.24694838]
[1693551085522,0.47848907,25997.0,25996.0,0.15141]
[1693551085919,0.53503671,25997.0,25996.0,0.15141]